[Event "Bionext Festival 2019"]
[Site "Chihuahua"]
[Date "2019.11.30"]
[Round "2.6"]
[White "Nunez Hirales, Juan Alejandro"]
[Black "Tello Chavez, Isaac Valent"]
[Result "1/2-1/2"]
[ECO "D00"]
[WhiteElo "2016"]
[BlackElo "2274"]
[Annotator "NA"]
[PlyCount "122"]
[EventDate "2019.11.30"]
[EventType "swiss"]
[EventCountry "MEX"]
[SourceTitle "playchess.com"]
[Source "ChessBase"]
[SourceQuality "1"]
[TimeControl "5400+30"]

1. d4 {[%emt 1:30:30]} c6 {[%emt 1:30:30]} 2. Nc3 {[%emt 0:00:30]} d5 {[%emt 0:00:30]} 3. Bf4 {[%emt 0:00:30]} Bf5 {[%emt 0:00:30]} 4. e3 {[%emt 0:00:30]} e6 {[%emt 0:00:30]} 5. f3 {[%emt 0:00:30]} Be7 {[%emt 0:00:30]} 6. Bd3 {[%emt 0:00:30]} Bg6 {[%emt 0:00:30]} 7. Nge2 {[%emt 0:00:30]} Nd7 {[%emt 0:00:30]} 8. Qd2 {[%emt 0:00:30]} b5 {[%emt 0:00:30]} 9. Bg3 {[%emt 0:00:30]} Ngf6 {[%emt 0:00:30]} 10. Nf4 {[%emt 0:00:30]} b4 {[%emt 0:00:30]} 11. Na4 {[%emt 0:00:30]} O-O {[%emt 0:00:30]} 12. O-O {[%emt 0:00:30]} c5 {[%emt 0:00:30]} 13. dxc5 {[%emt 0:00:30]} Nxc5 {[%emt 0:00:30]} 14. Nxc5 {[%emt 0:00:30]} Bxc5 {[%emt 0:00:30]} 15. Bxg6 {[%emt 0:00:30]} hxg6 {[%emt 0:00:30]} 16. Nd3 {[%emt 0:00:30]} Qb6 {[%emt 0:00:30]} 17. Nxc5 {[%emt 0:00:30]} Qxc5 {[%emt 0:00:30]} 18. Rfc1 {[%emt 0:00:30]} a5 {[%emt 0:00:30]} 19. c3 {[%emt 0:00:30]} Ra6 {[%emt 0:00:30]} 20. Be1 {[%emt 0:00:30]} Qa7 {[%emt 0:00:30]} 21. Qd4 {[%emt 0:00:30]} Rb8 {[%emt 0:00:30]} 22. Qxa7 {[%emt 0:00:30]} Rxa7 {[%emt 0:00:30]} 23. cxb4 {[%emt 0:00:30]} axb4 {[%emt 0:00:30]} 24. b3 {[%emt 0:00:30]} g5 {[%emt 0:00:30]} 25. h3 {[%emt 0:00:30]} Nd7 {[%emt 0:00:30]} 26. Rc2 {[%emt 0:00:30]} f6 {[%emt 0:00:30]} 27. Rac1 {[%emt 0:00:30]} Rbb7 {[%emt 0:00:30]} 28. Bf2 {[%emt 0:00:30]} e5 {[%emt 0:00:30]} 29. Rd1 {[%emt 0:00:30]} Rb5 {[%emt 0:00:30]} 30. Rdc1 {[%emt 0:00:30]} e4 {[%emt 0:00:30]} 31. f4 {[%emt 0:00:30]} Rba5 {[%emt 0:00:30]} 32. fxg5 {[%emt 0:00:30]} fxg5 {[%emt 0:00:30]} 33. Be1 {[%emt 0:00:30]} Rxa2 {[%emt 0:00:30]} 34. Bxb4 {[%emt 0:00:30]} Rxc2 {[%emt 0:00:30]} 35. Rxc2 {[%emt 0:00:30]} Rb7 {[%emt 0:00:30]} 36. Bd6 {[%emt 0:00:30]} Rxb3 {[%emt 0:00:30]} 37. Rc7 {[%emt 0:00:30]} Nf6 {[%emt 0:00:30]} 38. Kf2 {[%emt 0:00:30]} g4 {[%emt 0:00:30]} 39. Be5 {[%emt 0:00:30]} gxh3 {[%emt 0:00:30]} 40. gxh3 {[%emt 0:00:30]} Nh5 {[%emt 0:00:30]} 41. Rc5 {[%emt 0:00:30]} Rd3 {[%emt 0:00:30]} 42. Bd4 {[%emt 0:00:30]} Nf4 {[%emt 0:00:30]} 43. Rc7 {[%emt 0:00:30]} Ne6 {[%emt 0:00:30]} 44. Rc8+ {[%emt 0:00:30]} Kh7 {[%emt 0:00:30]} 45. Be5 {[%emt 0:00:30]} Kg6 {[%emt 0:00:30]} 46. Rc6 {[%emt 0:00:30]} Kf5 {[%emt 0:00:30]} 47. Bg3 {[%emt 0:00:30]} Ng5 {[%emt 0:00:30]} 48. h4 {[%emt 0:00:30]} Rd2+ {[%emt 0:00:30]} 49. Kf1 {[%emt 0:00:30]} Nf3 {[%emt 0:00:30]} 50. Bf2 {[%emt 0:00:30]} Ne5 {[%emt 0:00:30]} 51. Rc7 {[%emt 0:00:30]} g6 {[%emt 0:00:30]} 52. Bg3 {[%emt 0:00:30]} Nf3 {[%emt 0:00:30]} 53. Bf2 {[%emt 0:00:30]} Nh2+ {[%emt 0:00:30]} 54. Ke1 {[%emt 0:00:30]} Nf3+ 55. Kf1 {[%emt 0:00:30]} Ne5 {[%emt 0:01:00]} 56. Bg3 {[%emt 0:00:30]} Ng4 {[%emt 0:00:30]} 57. Bf4 {[%emt 0:00:30]} Nh2+ {[%emt 0:00:30]} 58. Bxh2 {[%emt 0:00:30]} Rxh2 {[%emt 0:00:30]} 59. Rf7+ {[%emt 0:00:30]} Kg4 {[%emt 0:00:30]} 60. Rf6 {[%emt 0:00:30]} Rxh4 {[%emt 0:00:30]} 61. Rxg6+ {[%emt 0:00:30]} Kf3 {[%emt 0:00:30]} 1/2-1/2

[Event "Bionext Festival 2019"]
[Site "Chihuahua"]
[Date "2019.11.30"]
[Round "2.7"]
[White "Corrales Jimenez, Zenia"]
[Black "Sainz Aguirre, Ignacio"]
[Result "1-0"]
[ECO "B33"]
[WhiteElo "2219"]
[BlackElo "1884"]
[Annotator "NA"]
[PlyCount "54"]
[EventDate "2019.11.30"]
[EventType "swiss"]
[EventCountry "MEX"]
[SourceTitle "playchess.com"]
[Source "ChessBase"]
[SourceQuality "1"]
[TimeControl "5400+30"]

1. e4 {[%emt 1:30:30]} c5 {[%emt 1:30:30]} 2. Nf3 {[%emt 0:00:30]} Nc6 {[%emt 0:00:30]} 3. d4 {[%emt 0:00:30]} cxd4 {[%emt 0:00:30]} 4. Nxd4 {[%emt 0:00:30]} Nf6 {[%emt 0:00:30]} 5. Nc3 {[%emt 0:00:30]} e5 {[%emt 0:00:30]} 6. Ndb5 {[%emt 0:00:30]} d6 {[%emt 0:00:30]} 7. Nd5 {[%emt 0:00:30]} Nxd5 {[%emt 0:00:30]} 8. exd5 {[%emt 0:00:30]} Ne7 {[%emt 0:00:30]} 9. c4 {[%emt 0:00:30]} Ng6 {[%emt 0:00:30]} 10. h4 {[%emt 0:00:30]} h5 {[%emt 0:00:30]} 11. g3 {[%emt 0:00:30]} a6 {[%emt 0:00:30]} 12. Nc3 {[%emt 0:00:30]} Bg4 {[%emt 0:00:30]} 13. Be2 {[%emt 0:00:30]} Bxe2 {[%emt 0:00:30]} 14. Qxe2 {[%emt 0:00:30]} Be7 {[%emt 0:00:30]} 15. Ne4 {[%emt 0:00:30]} Rc8 {[%emt 0:00:30]} 16. Bg5 {[%emt 0:00:30]} Bxg5 {[%emt 0:00:30]} 17. Nxg5 {[%emt 0:00:30]} Qa5+ {[%emt 0:00:30]} 18. Kf1 {[%emt 0:00:30]} b5 {[%emt 0:00:30]} 19. Ne4 {[%emt 0:00:30]} Rd8 {[%emt 0:00:30]} 20. cxb5 {[%emt 0:00:30]} axb5 {[%emt 0:00:30]} 21. Kg2 {[%emt 0:00:30]} Ne7 {[%emt 0:00:30]} 22. Qf3 {[%emt 0:00:30]} b4 {[%emt 0:00:30]} 23. Rhd1 {[%emt 0:00:30]} Qa7 {[%emt 0:00:30]} 24. Ng5 {[%emt 0:00:30]} Ng6 {[%emt 0:00:30]} 25. Rac1 {[%emt 0:00:30]} Qe7 {[%emt 0:00:30]} 26. Rc4 {[%emt 0:00:30]} Ra8 {[%emt 0:00:30]} 27. Rdc1 {[%emt 0:00:30]} O-O {[%emt 0:00:30]} 1-0

[Event "Bionext Festival 2019"]
[Site "Chihuahua"]
[Date "2019.11.30"]
[Round "2.8"]
[White "Gonzalez Estrada, Jesus Yo"]
[Black "Rodriguez Rivera, Pedro"]
[Result "1-0"]
[ECO "A55"]
[WhiteElo "1891"]
[BlackElo "2188"]
[Annotator "NA"]
[PlyCount "93"]
[EventDate "2019.11.30"]
[EventType "swiss"]
[EventCountry "MEX"]
[SourceTitle "playchess.com"]
[Source "ChessBase"]
[SourceQuality "1"]
[TimeControl "5400+30"]

1. Nf3 {[%emt 1:30:30]} Nf6 {[%emt 1:30:30]} 2. d4 {[%emt 0:00:30]} d6 {[%emt 0:00:30]} 3. c4 {[%emt 0:00:30]} Nbd7 {[%emt 0:00:30]} 4. Nc3 {[%emt 0:00:30]} e5 {[%emt 0:00:30]} 5. e4 {[%emt 0:00:30]} Be7 {[%emt 0:00:30]} 6. Be2 {[%emt 0:00:30]} O-O {[%emt 0:00:30]} 7. O-O {[%emt 0:00:30]} Re8 {[%emt 0:00:30]} 8. d5 {[%emt 0:00:30]} Nc5 {[%emt 0:00:30]} 9. Qc2 {[%emt 0:00:30]} a5 {[%emt 0:00:30]} 10. Be3 {[%emt 0:00:30]} Na6 {[%emt 0:00:30]} 11. Rac1 {[%emt 0:00:30]} Ng4 {[%emt 0:00:30]} 12. Bd2 {[%emt 0:00:30]} c6 {[%emt 0:00:30]} 13. h3 {[%emt 0:00:30]} Nf6 {[%emt 0:00:30]} 14. Rfd1 {[%emt 0:00:30]} Qc7 {[%emt 0:00:30]} 15. Be3 {[%emt 0:00:30]} Nd7 {[%emt 0:00:30]} 16. a3 {[%emt 0:00:30]} c5 {[%emt 0:00:30]} 17. Nb5 {[%emt 0:00:30]} Qd8 18. Nh2 {[%emt 0:00:30]} Nc7 {[%emt 0:01:00]} 19. Nc3 {[%emt 0:00:30]} Bg5 {[%emt 0:00:30]} 20. Qd2 {[%emt 0:00:30]} Bxe3 {[%emt 0:00:30]} 21. Qxe3 {[%emt 0:00:30]} Qh4 {[%emt 0:00:30]} 22. Bf1 {[%emt 0:00:30]} Qf4 {[%emt 0:00:30]} 23. Qe1 {[%emt 0:00:30]} Nb6 {[%emt 0:00:30]} 24. Rd3 {[%emt 0:00:30]} Bd7 {[%emt 0:00:30]} 25. Rf3 {[%emt 0:00:30]} Qg5 {[%emt 0:00:30]} 26. Rd1 {[%emt 0:00:30]} Nc8 {[%emt 0:00:30]} 27. Rg3 {[%emt 0:00:30]} Qh4 {[%emt 0:00:30]} 28. Be2 {[%emt 0:00:30]} Ne7 {[%emt 0:00:30]} 29. Bg4 {[%emt 0:00:30]} f5 {[%emt 0:00:30]} 30. Nf3 {[%emt 0:00:30]} Qf6 {[%emt 0:00:30]} 31. exf5 {[%emt 0:00:30]} Nxf5 {[%emt 0:00:30]} 32. Ne4 {[%emt 0:00:30]} Qd8 {[%emt 0:00:30]} 33. Bxf5 {[%emt 0:00:30]} Bxf5 34. a4 {[%emt 0:00:30]} Bxe4 {[%emt 0:01:00]} 35. Qxe4 {[%emt 0:00:30]} Qd7 {[%emt 0:00:30]} 36. Ng5 {[%emt 0:00:30]} g6 {[%emt 0:00:30]} 37. h4 {[%emt 0:00:30]} Rf8 {[%emt 0:00:30]} 38. h5 {[%emt 0:00:30]} Rf4 {[%emt 0:00:30]} 39. Qc2 {[%emt 0:00:30]} Raf8 {[%emt 0:00:30]} 40. hxg6 {[%emt 0:00:30]} Rxf2 {[%emt 0:00:30]} 41. gxh7+ {[%emt 0:00:30]} Kh8 {[%emt 0:00:30]} 42. Qxf2 {[%emt 0:00:30]} Rxf2 {[%emt 0:00:30]} 43. Kxf2 {[%emt 0:00:30]} Qf5+ {[%emt 0:00:30]} 44. Kg1 {[%emt 0:00:30]} Qf4 {[%emt 0:00:30]} 45. Rf1 {[%emt 0:00:30]} Qd4+ {[%emt 0:00:30]} 46. Kh2 {[%emt 0:00:30]} Qh4+ {[%emt 0:00:30]} 47. Rh3 {[%emt 0:00:30]} 1-0

[Event "Bionext Festival 2019"]
[Site "Chihuahua"]
[Date "2019.11.30"]
[Round "2.9"]
[White "Hernandez Moya, Yuleisy"]
[Black "Bencomo, Murga Francisco"]
[Result "1-0"]
[ECO "B30"]
[WhiteElo "2181"]
[BlackElo "1865"]
[Annotator "NA"]
[PlyCount "59"]
[EventDate "2019.11.30"]
[EventType "swiss"]
[EventCountry "MEX"]
[SourceTitle "playchess.com"]
[Source "ChessBase"]
[SourceQuality "1"]
[TimeControl "5400+30"]

1. e4 {[%emt 1:30:30]} c5 {[%emt 1:30:30]} 2. Nf3 {[%emt 0:00:30]} Nc6 {[%emt 0:00:30]} 3. Bb5 {[%emt 0:00:30]} e6 {[%emt 0:00:30]} 4. O-O {[%emt 0:00:30]} Nge7 {[%emt 0:00:30]} 5. Re1 {[%emt 0:00:30]} a6 {[%emt 0:00:30]} 6. Bf1 {[%emt 0:00:30]} d5 {[%emt 0:00:30]} 7. exd5 {[%emt 0:00:30]} Nxd5 {[%emt 0:00:30]} 8. d4 {[%emt 0:00:30]} Nf6 {[%emt 0:00:30]} 9. Be3 {[%emt 0:00:30]} cxd4 {[%emt 0:00:30]} 10. Nxd4 {[%emt 0:00:30]} Nxd4 {[%emt 0:00:30]} 11. Bxd4 {[%emt 0:00:30]} Be7 {[%emt 0:00:30]} 12. c4 {[%emt 0:00:30]} Bd7 {[%emt 0:00:30]} 13. Nc3 {[%emt 0:00:30]} Bc6 {[%emt 0:00:30]} 14. a3 {[%emt 0:00:30]} Qd7 {[%emt 0:00:30]} 15. Bb6 {[%emt 0:00:30]} Qxd1 {[%emt 0:00:30]} 16. Raxd1 {[%emt 0:00:30]} Nd7 {[%emt 0:00:30]} 17. Bd4 {[%emt 0:00:30]} a5 {[%emt 0:00:30]} 18. Bxg7 {[%emt 0:00:30]} Rg8 {[%emt 0:00:30]} 19. Bd4 {[%emt 0:00:30]} O-O-O {[%emt 0:00:30]} 20. g3 {[%emt 0:00:30]} Nc5 {[%emt 0:00:30]} 21. Bg2 {[%emt 0:00:30]} Nb3 {[%emt 0:00:30]} 22. Bb6 {[%emt 0:00:30]} Rxd1 {[%emt 0:00:30]} 23. Rxd1 {[%emt 0:00:30]} Bf6 {[%emt 0:00:30]} 24. Bxc6 {[%emt 0:00:30]} bxc6 {[%emt 0:00:30]} 25. Na4 {[%emt 0:00:30]} Rg4 {[%emt 0:00:30]} 26. f4 {[%emt 0:00:30]} Rg6 {[%emt 0:00:30]} 27. Rd3 {[%emt 0:00:30]} Nc1 {[%emt 0:00:30]} 28. Rd6 {[%emt 0:00:30]} Kb7 {[%emt 0:00:30]} 29. Rd7+ {[%emt 0:00:30]} Kb8 {[%emt 0:00:30]} 30. Ba7+ {[%emt 0:00:30]} 1-0

[Event "Bionext Festival 2019"]
[Site "Chihuahua"]
[Date "2019.11.30"]
[Round "2.10"]
[White "Vargas Miranda, Diego"]
[Black "Ramirez Ruacho, Juan Manuel"]
[Result "1/2-1/2"]
[ECO "B20"]
[WhiteElo "1892"]
[BlackElo "2175"]
[Annotator "NA"]
[PlyCount "34"]
[EventDate "2019.11.30"]
[EventType "swiss"]
[EventCountry "MEX"]
[SourceTitle "playchess.com"]
[Source "ChessBase"]
[SourceQuality "1"]
[TimeControl "5400+30"]

1. e4 {[%emt 1:30:30]} c5 {[%emt 1:30:30]} 2. b3 {[%emt 0:00:30]} Nc6 {[%emt 0:00:30]} 3. Bb2 {[%emt 0:00:30]} d6 {[%emt 0:00:30]} 4. Bb5 {[%emt 0:00:30]} Bd7 {[%emt 0:00:30]} 5. Ne2 {[%emt 0:00:30]} Nf6 {[%emt 0:00:30]} 6. Nbc3 {[%emt 0:00:30]} a6 {[%emt 0:00:30]} 7. Bxc6 {[%emt 0:00:30]} Bxc6 {[%emt 0:00:30]} 8. d3 {[%emt 0:00:30]} e6 {[%emt 0:00:30]} 9. Ng3 {[%emt 0:00:30]} h5 {[%emt 0:00:30]} 10. Qd2 {[%emt 0:00:30]} h4 {[%emt 0:00:30]} 11. Nge2 {[%emt 0:00:30]} h3 {[%emt 0:00:30]} 12. g3 {[%emt 0:00:30]} b5 {[%emt 0:00:30]} 13. O-O {[%emt 0:00:30]} Be7 {[%emt 0:00:30]} 14. f3 {[%emt 0:00:30]} Qb6 {[%emt 0:00:30]} 15. Kh1 {[%emt 0:00:30]} e5 {[%emt 0:00:30]} 16. g4 {[%emt 0:00:30]} Qb7 {[%emt 0:00:30]} 17. Ng3 {[%emt 0:00:30]} g6 {[%emt 0:00:30]} 1/2-1/2

[Event "Bionext Festival 2019"]
[Site "Chihuahua"]
[Date "2019.11.30"]
[Round "2.11"]
[White "Rojas Quevedo, Luis Enriqu"]
[Black "Hernandez Jimenez, Alexander Andres"]
[Result "0-1"]
[ECO "B99"]
[WhiteElo "1795"]
[BlackElo "2135"]
[Annotator "NA"]
[PlyCount "56"]
[EventDate "2019.11.30"]
[EventType "swiss"]
[EventCountry "MEX"]
[SourceTitle "playchess.com"]
[Source "ChessBase"]
[SourceQuality "1"]
[TimeControl "5400+30"]

1. e4 {[%emt 1:30:30]} c5 {[%emt 1:30:30]} 2. Nf3 {[%emt 0:00:30]} d6 {[%emt 0:00:30]} 3. d4 {[%emt 0:00:30]} cxd4 {[%emt 0:00:30]} 4. Nxd4 {[%emt 0:00:30]} Nf6 {[%emt 0:00:30]} 5. Nc3 {[%emt 0:00:30]} a6 {[%emt 0:00:30]} 6. Bg5 {[%emt 0:00:30]} e6 {[%emt 0:00:30]} 7. f4 {[%emt 0:00:30]} Nbd7 {[%emt 0:00:30]} 8. Qf3 {[%emt 0:00:30]} Qc7 {[%emt 0:00:30]} 9. g4 {[%emt 0:00:30]} Be7 {[%emt 0:00:30]} 10. O-O-O {[%emt 0:00:30]} h6 {[%emt 0:00:30]} 11. Bxf6 {[%emt 0:00:30]} gxf6 {[%emt 0:00:30]} 12. f5 {[%emt 0:00:30]} Ne5 {[%emt 0:00:30]} 13. Qh3 {[%emt 0:00:30]} Bd7 {[%emt 0:00:30]} 14. Nce2 {[%emt 0:00:30]} Rc8 {[%emt 0:00:30]} 15. Nf4 {[%emt 0:00:30]} d5 {[%emt 0:00:30]} 16. fxe6 {[%emt 0:00:30]} Bxe6 {[%emt 0:00:30]} 17. Nfxe6 {[%emt 0:00:30]} fxe6 {[%emt 0:00:30]} 18. exd5 {[%emt 0:00:30]} Bc5 {[%emt 0:00:30]} 19. c3 {[%emt 0:00:30]} Bxd4 {[%emt 0:00:30]} 20. Rxd4 {[%emt 0:00:30]} Qc5 {[%emt 0:00:30]} 21. g5 {[%emt 0:00:30]} f5 {[%emt 0:00:30]} 22. Qe3 {[%emt 0:00:30]} Ng4 {[%emt 0:00:30]} 23. Qxe6+ {[%emt 0:00:30]} Kd8 24. Kb1 {[%emt 0:00:30]} Re8 {[%emt 0:01:00]} 25. Qxf5 {[%emt 0:00:30]} Re1+ {[%emt 0:00:30]} 26. Kc2 {[%emt 0:00:30]} Ne3+ {[%emt 0:00:30]} 27. Kd2 {[%emt 0:00:30]} Nxf5 {[%emt 0:00:30]} 28. gxh6 {[%emt 0:00:30]} Nxd4 {[%emt 0:00:30]} 0-1

[Event "Bionext Festival 2019"]
[Site "Chihuahua"]
[Date "2019.11.30"]
[Round "2.12"]
[White "Castillo Coca, Mairebis"]
[Black "Rubio Ramos, Jorge Yadir"]
[Result "1/2-1/2"]
[ECO "C00"]
[WhiteElo "2134"]
[BlackElo "1819"]
[Annotator "NA"]
[PlyCount "104"]
[EventDate "2019.11.30"]
[EventType "swiss"]
[EventCountry "MEX"]
[SourceTitle "playchess.com"]
[Source "ChessBase"]
[SourceQuality "1"]
[TimeControl "5400+30"]

1. e4 {[%emt 1:30:30]} c5 {[%emt 1:30:30]} 2. Nf3 {[%emt 0:00:30]} Nc6 {[%emt 0:00:30]} 3. d3 {[%emt 0:00:30]} e6 {[%emt 0:00:30]} 4. Nbd2 {[%emt 0:00:30]} d5 {[%emt 0:00:30]} 5. g3 {[%emt 0:00:30]} Nf6 {[%emt 0:00:30]} 6. Bg2 {[%emt 0:00:30]} Be7 {[%emt 0:00:30]} 7. O-O {[%emt 0:00:30]} b6 {[%emt 0:00:30]} 8. Re1 {[%emt 0:00:30]} Bb7 {[%emt 0:00:30]} 9. e5 {[%emt 0:00:30]} Nd7 {[%emt 0:00:30]} 10. Nf1 {[%emt 0:00:30]} g5 {[%emt 0:00:30]} 11. h3 {[%emt 0:00:30]} h5 {[%emt 0:00:30]} 12. c3 {[%emt 0:00:30]} g4 {[%emt 0:00:30]} 13. hxg4 {[%emt 0:00:30]} hxg4 {[%emt 0:00:30]} 14. N3h2 {[%emt 0:00:30]} Ndxe5 {[%emt 0:00:30]} 15. d4 {[%emt 0:00:30]} Nf3+ {[%emt 0:00:30]} 16. Nxf3 {[%emt 0:00:30]} gxf3 {[%emt 0:00:30]} 17. Bxf3 {[%emt 0:00:30]} Qd7 {[%emt 0:00:30]} 18. Bf4 {[%emt 0:00:30]} O-O-O {[%emt 0:00:30]} 19. a4 {[%emt 0:00:30]} Bd6 {[%emt 0:00:30]} 20. Bxd6 {[%emt 0:00:30]} Qxd6 {[%emt 0:00:30]} 21. a5 {[%emt 0:00:30]} Nxa5 {[%emt 0:00:30]} 22. dxc5 {[%emt 0:00:30]} Qc7 {[%emt 0:00:30]} 23. b4 {[%emt 0:00:30]} Nc4 {[%emt 0:00:30]} 24. Rxa7 {[%emt 0:00:30]} Kb8 {[%emt 0:00:30]} 25. Qa4 {[%emt 0:00:30]} bxc5 {[%emt 0:00:30]} 26. Ra1 {[%emt 0:00:30]} Nb6 {[%emt 0:00:30]} 27. Qb5 {[%emt 0:00:30]} cxb4 {[%emt 0:00:30]} 28. Qxb4 {[%emt 0:00:30]} Qd6 {[%emt 0:00:30]} 29. Qa5 {[%emt 0:00:30]} Nc8 {[%emt 0:00:30]} 30. Rxb7+ {[%emt 0:00:30]} Kxb7 {[%emt 0:00:30]} 31. c4 {[%emt 0:00:30]} Qb6 {[%emt 0:00:30]} 32. Qa2 {[%emt 0:00:30]} Kc7 {[%emt 0:00:30]} 33. cxd5 {[%emt 0:00:30]} Kd7 {[%emt 0:00:30]} 34. Rb1 {[%emt 0:00:30]} Qd6 {[%emt 0:00:30]} 35. Rb7+ {[%emt 0:00:30]} Ke8 {[%emt 0:00:30]} 36. Qb2 {[%emt 0:00:30]} Rg8 {[%emt 0:00:30]} 37. Rb5 {[%emt 0:00:30]} Ne7 {[%emt 0:00:30]} 38. dxe6 {[%emt 0:00:30]} Qxe6 {[%emt 0:00:30]} 39. Re5 {[%emt 0:00:30]} Qd6 {[%emt 0:00:30]} 40. Ne3 {[%emt 0:00:30]} Kf8 {[%emt 0:00:30]} 41. Nd5 {[%emt 0:00:30]} Rb8 {[%emt 0:00:30]} 42. Qc3 {[%emt 0:00:30]} Ng6 {[%emt 0:00:30]} 43. Re1 {[%emt 0:00:30]} Nh4 {[%emt 0:00:30]} 44. Be4 {[%emt 0:00:30]} f5 {[%emt 0:00:30]} 45. Bh1 {[%emt 0:00:30]} f4 {[%emt 0:00:30]} 46. Qf6+ {[%emt 0:00:30]} Qxf6 {[%emt 0:00:30]} 47. Nxf6 fxg3 {[%emt 0:00:30]} 48. Nxg8 {[%emt 0:01:00]} gxf2+ {[%emt 0:00:30]} 49. Kxf2 {[%emt 0:00:30]} Kxg8 {[%emt 0:00:30]} 50. Be4 {[%emt 0:00:30]} Kg7 {[%emt 0:00:30]} 51. Rg1+ {[%emt 0:00:30]} Kf6 {[%emt 0:00:30]} 52. Rg4 {[%emt 0:00:30]} Nf5 {[%emt 0:00:30]} 1/2-1/2

[Event "Bionext Festival 2019"]
[Site "Chihuahua"]
[Date "2019.11.30"]
[Round "4.7"]
[White "Corrales Jimenez, Zenia"]
[Black "Ibarra Elizarraras, Juan Jose"]
[Result "*"]
[ECO "C01"]
[WhiteElo "2219"]
[BlackElo "1889"]
[Annotator "RC"]
[PlyCount "87"]
[EventDate "2019.11.30"]
[EventType "swiss"]
[EventCountry "MEX"]
[SourceTitle "playchess.com"]
[Source "ChessBase"]
[SourceQuality "1"]
[TimeControl "5400+30"]

1. e4 {[%emt 1:30:30]} e6 {[%emt 1:30:30]} 2. d4 {[%emt 0:00:30]} d5 {[%emt 0:00:30]} 3. Bd3 {[%emt 0:00:30]} Nf6 {[%emt 0:00:30]} 4. e5 {[%emt 0:00:30]} Nfd7 {[%emt 0:00:30]} 5. Nf3 {[%emt 0:00:30]} b6 {[%emt 0:00:30]} 6. Ng5 {[%emt 0:00:30]} h6 {[%emt 0:00:30]} 7. Qh5 {[%emt 0:00:30]} hxg5 {[%emt 0:00:30]} 8. Qxh8 {[%emt 0:00:30]} Ba6 {[%emt 0:00:30]} 9. Qh7 {[%emt 0:00:30]} Bxd3 {[%emt 0:00:30]} 10. Qxd3 {[%emt 0:00:30]} c5 {[%emt 0:00:30]} 11. c3 {[%emt 0:00:30]} c4 {[%emt 0:00:30]} 12. Qg3 {[%emt 0:00:30]} Be7 {[%emt 0:00:30]} 13. f4 {[%emt 0:00:30]} Nc6 {[%emt 0:00:30]} 14. fxg5 {[%emt 0:00:30]} Qc7 {[%emt 0:00:30]} 15. O-O {[%emt 0:00:30]} O-O-O {[%emt 0:00:30]} 16. Rxf7 {[%emt 0:00:30]} g6 {[%emt 0:00:30]} 17. Be3 {[%emt 0:00:30]} Rh8 {[%emt 0:00:30]} 18. Nd2 {[%emt 0:00:30]} Qd8 {[%emt 0:00:30]} 19. Qg4 {[%emt 0:00:30]} Nf8 {[%emt 0:00:30]} 20. Rxf8 {[%emt 0:00:30]} Rxf8 {[%emt 0:00:30]} 21. Qxe6+ {[%emt 0:00:30]} Kc7 {[%emt 0:00:30]} 22. Qxg6 {[%emt 0:00:30]} Rg8 {[%emt 0:00:30]} 23. Qf7 {[%emt 0:00:30]} Rf8 {[%emt 0:00:30]} 24. Qh5 {[%emt 0:00:30]} Rh8 {[%emt 0:00:30]} 25. Qg4 {[%emt 0:00:30]} Qg8 {[%emt 0:00:30]} 26. g6 {[%emt 0:00:30]} Rh4 {[%emt 0:00:30]} 27. Qg3 {[%emt 0:00:30]} Kb7 {[%emt 0:00:30]} 28. Rf1 {[%emt 0:00:30]} Nd8 {[%emt 0:00:30]} 29. Bg5 {[%emt 0:00:30]} Bxg5 {[%emt 0:00:30]} 30. Qxg5 {[%emt 0:00:30]} Rh7 {[%emt 0:00:30]} 31. gxh7 {[%emt 0:00:30]} Qxg5 {[%emt 0:00:30]} 32. h8=Q {[%emt 0:00:30]} Qxd2 {[%emt 0:00:30]} 33. Qxd8 {[%emt 0:00:30]} Qe3+ {[%emt 0:00:30]} 34. Kh1 {[%emt 0:00:30]} Qe2 {[%emt 0:00:30]} 35. Qxd5+ {[%emt 0:00:30]} Ka6 {[%emt 0:00:30]} 36. Qf3 {[%emt 0:00:30]} Qxb2 {[%emt 0:00:30]} 37. e6 {[%emt 0:00:30]} Qa3 {[%emt 0:00:30]} 38. Re1 {[%emt 0:00:30]} Qe7 {[%emt 0:00:30]} 39. d5 {[%emt 0:00:30]} Qh4 {[%emt 0:00:30]} 40. Qe4 {[%emt 0:00:30]} Qf2 {[%emt 0:00:30]} 41. e7 {[%emt 0:00:30]} Qd2 {[%emt 0:00:30]} 42. e8=Q {[%emt 0:00:30]} Qxc3 {[%emt 0:00:30]} 43. Qa4+ {[%emt 0:00:30]} Qa5 {[%emt 0:00:30]} 44. Qexc4+ {[%emt 0:00:30]} *

[Event "Bionext Festival 2019"]
[Site "Chihuahua"]
[Date "2019.11.30"]
[Round "4.10"]
[White "Gonzalez Estrada, Jesus Yo"]
[Black "Ramirez Ruacho, Juan Manuel"]
[Result "0-1"]
[ECO "A81"]
[WhiteElo "1891"]
[BlackElo "2175"]
[Annotator "RC"]
[PlyCount "58"]
[EventDate "2019.11.30"]
[EventType "swiss"]
[EventCountry "MEX"]
[SourceTitle "playchess.com"]
[Source "ChessBase"]
[SourceQuality "1"]
[TimeControl "5400+30"]

1. Nf3 {[%emt 1:30:30]} f5 {[%emt 1:30:30]} 2. d4 {[%emt 0:00:30]} Nf6 {[%emt 0:00:30]} 3. g3 {[%emt 0:00:30]} b5 {[%emt 0:00:30]} 4. Bg2 {[%emt 0:00:30]} e6 {[%emt 0:00:30]} 5. Ne5 {[%emt 0:00:30]} c6 {[%emt 0:00:30]} 6. a4 {[%emt 0:00:30]} b4 {[%emt 0:00:30]} 7. Bg5 {[%emt 0:00:30]} Be7 {[%emt 0:00:30]} 8. e4 {[%emt 0:00:30]} d6 {[%emt 0:00:30]} 9. Bxf6 {[%emt 0:00:30]} Bxf6 {[%emt 0:00:30]} 10. Qh5+ {[%emt 0:00:30]} g6 {[%emt 0:00:30]} 11. Nxg6 {[%emt 0:00:30]} hxg6 {[%emt 0:00:30]} 12. Qxg6+ {[%emt 0:00:30]} Kf8 {[%emt 0:00:30]} 13. c3 {[%emt 0:00:30]} a5 {[%emt 0:00:30]} 14. Nd2 {[%emt 0:00:30]} Ra7 {[%emt 0:00:30]} 15. e5 {[%emt 0:00:30]} dxe5 {[%emt 0:00:30]} 16. dxe5 {[%emt 0:00:30]} Bxe5 {[%emt 0:00:30]} 17. Nc4 {[%emt 0:00:30]} Bxc3+ {[%emt 0:00:30]} 18. bxc3 {[%emt 0:00:30]} Rg7 {[%emt 0:00:30]} 19. Ne5 {[%emt 0:00:30]} Rxg6 {[%emt 0:00:30]} 20. Nxg6+ {[%emt 0:00:30]} Kf7 {[%emt 0:00:30]} 21. Nxh8+ {[%emt 0:00:30]} Qxh8 {[%emt 0:00:30]} 22. O-O {[%emt 0:00:30]} Qxc3 {[%emt 0:00:30]} 23. Rac1 {[%emt 0:00:30]} Qb3 {[%emt 0:00:30]} 24. Bxc6 {[%emt 0:00:30]} Nxc6 {[%emt 0:00:30]} 25. Rxc6 {[%emt 0:00:30]} Bd7 {[%emt 0:00:30]} 26. Ra6 {[%emt 0:00:30]} Qd5 {[%emt 0:00:30]} 27. Rc1 {[%emt 0:00:30]} b3 {[%emt 0:00:30]} 28. Rb6 {[%emt 0:00:30]} Kf6 {[%emt 0:00:30]} 29. Rc7 {[%emt 0:00:30]} Bxa4 {[%emt 0:00:30]} 0-1